Cogmind - Beta 16.1 @@@ ROGUE MODE // 2026.04.05 @ 22:37:01 Player: WetterLettuce Result: Destroyed by 55-THK(R) with Subdweller Machine Gun Performance ------------- Evolutions (0) 0 Regions Visited (3) 600 Robots Destroyed (9) 45 Value Destroyed (206) 206 Prototype IDs (0) 0 Alien Tech Used (0) 0 Bonus (82) 82 TOTAL SCORE: 933 Bonus ------- Follower Combat Kills 134 Friendly Fire -52 Cogmind --------- Core Integrity 0/250 Matter 278/300 Energy 125/125 System Corruption 0% Temperature Cool (0) Movement Rolling (95) Location -10/Subcaves Parts ------- > --- POWER (1) -------- Light Ion Engine > --- PROPULSION (2) --- Wheel Subdweller Monowheel > --- UTILITY (2) ------ Large Storage Unit Signal Interpreter > --- WEAPON (2) ------- Subdweller Machine Gun Light Cannon > --- INVENTORY (15) --- Subdweller Power Source Aluminum Leg Wheel Subdweller Monowheel Small Storage Unit Humpback Medium Matter Pod (100) Structural Scanner Scrap Shield Light Assault Rifle Subdweller Machine Gun Mining Laser Peak State ------------ > --- POWER ------------ Light Ion Engine > --- PROPULSION ------- Subdweller Monowheel Subdweller Monowheel > --- UTILITY ---------- Large Storage Unit Signal Interpreter > --- WEAPON ----------- Subdweller Machine Gun Light Cannon > --- INVENTORY -------- Light Ion Engine Small Storage Unit Humpback Medium Matter Pod Scrap Shield Light Assault Rifle Mining Laser [Rating: 11] Favorites ----------- Power Light Ion Engine Engine Light Ion Engine Propulsion Aluminum Leg Leg Aluminum Leg Wheel Subdweller Monowheel Utility Signal Interpreter Storage Large Storage Unit Processor Signal Interpreter Weapon Light Cannon Energy Gun Medium Laser Ballistic Gun Assault Rifle Ballistic Cannon Light Cannon Special Weapon Mining Laser Build | -11 -10 -10 -10 ------- Run | Yrd Mat Min Sub Slots Evolved . | . . . . Power . | . . . . Propulsion . | . . . . Utility . | . . . . Weapon . | . . . . Parts Attached 19 | 6 1 4 8 Power 2 | 1 . . 1 Engine 2 | 1 . . 1 Core . | . . . . Reactor . | . . . . Propulsion 8 | 2 . 2 4 Treads . | . . . . Leg 2 | 2 . . . Wheel 6 | . . 2 4 Hover . | . . . . Flight . | . . . . Utility 3 | 1 1 1 . Device . | . . . . Storage 2 | 1 1 . . Processor 1 | . . 1 . Hackware . | . . . . Protection . | . . . . Artifact . | . . . . Weapon 6 | 2 . 1 3 Energy Gun 1 | 1 . . . Energy Cannon . | . . . . Ballistic Gun 3 | 1 . . 2 Ballistic Cannon 1 | . . 1 . Launcher . | . . . . Special Weapon 1 | . . . 1 Impact Weapon . | . . . . Slashing Weapon . | . . . . Piercing Weapon . | . . . . Special Melee Weapon . | . . . . Unidentified Prototypes . | . . . . Parts Lost 4 | . . . 4 Power 1 | . . . 1 Propulsion 2 | . . . 2 Utility . | . . . . Weapon 1 | . . . 1 Highest Loss Streak 3 | . . . 3 To Critical Strikes . | . . . . Average Backups 7 | 1 4 7 8 Power . | . 1 1 . Propulsion 1 | 1 2 2 1 Utility 2 | . . 1 3 Weapon 2 | . 1 2 2 Tool/Special . | . . . . Unused Backups 11 | . . 1 10 Power 2 | . . . 2 Propulsion 3 | . . . 3 Utility 4 | . . . 4 Weapon 1 | . . . 1 Tool/Special 1 | . . 1 . Average Slot Usage (%) 91 | . 85 87 94 Engine 13 | . 14 14 13 Leg 10 | . 28 24 . Wheel 14 | . . 3 23 Storage 14 | . 14 14 14 Processor 8 | . . 2 14 Energy Gun 2 | . 14 1 . Ballistic Gun 9 | . 14 14 5 Ballistic Cannon 11 | . . 12 14 Special Weapon 4 | . . . 8 Peak Build Rating 11 | 6 7 7 11 Average Rating 7 | 4 6 6 9 On Entrance 4 | . 6 6 7 Avg Prop Armor Cover (%) . | . . . . Naked Turns . | . . . . Heaviest Build 30 | 12 12 13 30 Greatest Support 40 | 20 20 26 40 Greatest Overweight (x) 2 | . . . 2 Average Overweight (x) . | . . . . Largest Inventory Capacity 15 | 8 15 8 15 Average Capacity 11 | 7 8 8 14 Most Carried 15 | 3 7 8 15 Average Carried 8 | 2 4 7 9 Final Capacity 15 | 8 8 8 15 Final Carried 14 | 3 7 8 14 Class Distribution -------------------- 100% | Mutant Dominant Class ---------------- Mutant | -10/Materials Mutant | -10/Mines Mutant | -10/Subcaves Resources | -11 -10 -10 -10 ----------- Run | Yrd Mat Min Sub Matter Collected 695 | 180 30 217 268 Remotely . | . . . . Salvage Created 265 | . 46 82 137 Parts 20 | . 5 2 13 Haulers Intercepted . | . . . . Recyclers Shooed . | . . . . Parts Field Recycled . | . . . . Retrieved Matter . | . . . . Parts Self-Destructed 7 | . . . 7 Prevented . | . . . . Parts Restored . | . . . . Kills | -11 -10 -10 -10 ------- Run | Yrd Mat Min Sub Combat Hostiles Destroyed 8 | . 3 1 4 Guns 5 | . 3 1 1 Cannons 3 | . . . 3 Classes Destroyed 3 | . 1 1 1 Recycler 1 | . . 1 . Swarmer 4 | . 3 1 . Subdweller 4 | . . . 4 Best Kill Streak 3 | . 3 2 2 Combat Bots Only 3 | . 3 1 2 Max Kills in Single Turn 2 | . 1 2 1 Gunslinging . | . . . . Exploded . | . . . . Melee . | . . . . Uniques/NPCs Destroyed . | . . . . Combat | -11 -10 -10 -10 -------- Run | Yrd Mat Min Sub Hostile Shots Fired 67 | . 11 26 30 Missed 26 | . 5 9 12 Hits 41 | . 6 17 18 Projectile 41 | . 6 17 18 Critical Strikes 1 | . . . 1 Damage Taken 717 | . 80 154 483 Core 257 | . 18 41 198 Absorbed by Shields . | . . . . Core Remaining (%) 100 | 100 . . . Volleys Fired 41 | . 6 11 24 Largest 2 | . 2 2 2 Hottest 100 | . 70 70 100 Shots Fired 77 | . 12 22 43 Gun 43 | . 12 12 19 Cannon 32 | . . 10 22 Launcher . | . . . . Special 2 | . . . 2 Kinetic 68 | . 6 21 41 Thermal 9 | . 6 1 2 Explosive . | . . . . Electromagnetic . | . . . . Robot Hit Streak 5 | . 2 2 5 Robot Miss Streak 5 | . 3 5 3 Penetration Max . | . . . . Secondary Targets . | . . . . Shots Hit Robots 36 | . 5 6 25 Core Hits 17 | . 3 2 12 Critical Kills . | . . . . Critical Parts Destroyed . | . . . . Critical Strikes 3 | . . 1 2 Destroy 1 | . . . 1 Blast 2 | . . 1 1 Melee Attacks . | . . . . Impact . | . . . . Slashing . | . . . . Piercing . | . . . . Sneak Attacks . | . . . . Combat Hostiles . | . . . . Follow-up Attacks . | . . . . Damage Inflicted 641 | . 55 156 430 Guns 262 | . 55 34 173 Cannons 379 | . . 122 257 Explosions . | . . . . Melee . | . . . . Ramming . | . . . . Kinetic 617 | . 31 156 430 Thermal 24 | . 24 . . Explosive . | . . . . Electromagnetic . | . . . . Impact . | . . . . Slashing . | . . . . Piercing . | . . . . Highest Corruption . | . . . . Average Corruption . | . . . . Corruption Purged . | . . . . Corruption Blocked . | . . . . Overload Shots . | . . . . Overflow Damage . | . . . . Projectiles . | . . . . Explosions . | . . . . Melee . | . . . . Knockbacks 6 | . . 5 1 Impact . | . . . . Kinetic 6 | . . 5 1 Secondary . | . . . . Self-Inflicted Damage . | . . . . Shots . | . . . . Rammed . | . . . . Targets Rammed . | . . . . Kicked . | . . . . Crushed . | . . . . Highest Temperature 54 | . 54 15 . Average Temperature 24 | . 28 7 . Received Heat Transfer 114 | . . 24 90 Siege Activations . | . . . . Martial Activations . | . . . . Shielding Activations . | . . . . Robots Disrupted . | . . . . Combat Hostiles . | . . . . Robots Corrupted . | . . . . Combat Hostiles . | . . . . Parts Fried . | . . . . Impact Corruptions . | . . . . Robots Melted . | . . . . Combat Hostiles . | . . . . Parts Melted . | . . . . Heat Transferred 74 | . 74 . . Parts Sabotaged . | . . . . Parts Stolen . | . . . . Parts Stripped . | . . . . Power Chain Reactions . | . . . . Alert | -11 -10 -10 -10 ------- Run | Yrd Mat Min Sub Maximum Alert Level . | . . . . Low Security (%) 100 | 100 100 100 . Level 1 . | . . . . Level 2 . | . . . . Level 3 . | . . . . Level 4 . | . . . . Level 5 . | . . . . High Security . | . . . . Max Security . | . . . . Peak Influence 119 | . 60 119 . Initial . | . . . . Average 37 | . 21 61 . Influence Increases 209 | . 70 139 . Destroy 0b10 Robot/C 160 | . 60 100 . Destroy 0b10 Robot/NC 5 | . . 5 . Destroy Leader 30 | . 10 20 . Allied During Kill 14 | . . 14 . Influence Decreases 209 | . 70 110 29 Entered New Map 16 | . . . 16 Time Decay 193 | . 70 110 13 Squads Dispatched 1 | . 1 . . Investigation . | . . . . Extermination . | . . . . Reinforcement 1 | . 1 . . Assault . | . . . . Garrison . | . . . . Intercept . | . . . . Searches Triggered . | . . . . Construction Impeded . | . . . . Haulers Reinforced . | . . . . Active Scanning Responses . | . . . . Cargo Convoy Interrupts . | . . . . Stealth | -11 -10 -10 -10 --------- Run | Yrd Mat Min Sub Distress Signals . | . . . . Communications Jammed . | . . . . Distress Signals . | . . . . Times Spotted 19 | . 5 5 9 Peak Tracking Total 3 | . 2 3 2 Tactical Retreats . | . . . . Traps | -11 -10 -10 -10 ------- Run | Yrd Mat Min Sub Traps Triggered 3 | . 1 . 2 Indirectly . | . . . . Trap Hack Attempts . | . . . . Triggered . | . . . . Disarmed . | . . . . Reprogrammed . | . . . . Reused . | . . . . Traps Extracted . | . . . . Installed . | . . . . Triggered . | . . . . Machines | -11 -10 -10 -10 ---------- Run | Yrd Mat Min Sub Machines Disabled . | . . . . Max in Single Turn . | . . . . Machines Repaired . | . . . . Machines Dismantled . | . . . . Machines Sabotaged . | . . . . Overloaded Fab Kills . | . . . . Hacking | -11 -10 -10 -10 --------- Run | Yrd Mat Min Sub Machines Accessed . | . . . . Terminals . | . . . . Fabricators . | . . . . Repair Stations . | . . . . Recycling Units . | . . . . Scanalyzers . | . . . . Garrison Access . | . . . . Total Hacks . | . . . . Successful . | . . . . Failed . | . . . . Catastrophic . | . . . . Database Lockouts . | . . . . Manual . | . . . . Terminals . | . . . . Fabricators . | . . . . Repair Stations . | . . . . Recycling Units . | . . . . Scanalyzers . | . . . . Garrison Access . | . . . . Terminal Hacks . | . . . . Fabricator Hacks . | . . . . Repair Station Hacks . | . . . . Recycling Unit Hacks . | . . . . Scanalyzer . | . . . . Garrison Access Hacks . | . . . . Unauthorized Hacks . | . . . . Terminals . | . . . . Fabricators . | . . . . Repair Stations . | . . . . Recycling Units . | . . . . Scanalyzers . | . . . . Garrison Access . | . . . . Data Cores Recovered . | . . . . Used . | . . . . Hacking Detections . | . . . . Full Trace Events . | . . . . Feedback Events . | . . . . Feedback Blocked . | . . . . Robot Schematics Acquired . | . . . . Robots Built . | . . . . Authchips . | . . . . Time . | . . . . Total Robot Build Rating . | . . . . Part Schematics Acquired . | . . . . Parts Built . | . . . . Authchips . | . . . . Time . | . . . . Total Part Build Rating . | . . . . Part Studies Acquired . | . . . . Parts Repaired . | . . . . Time . | . . . . Parts Recycled . | . . . . Recycled Matter . | . . . . Retrieved Matter . | . . . . Retrieved Components . | . . . . Parts Scanalyzed . | . . . . Part Schematics Acquired . | . . . . Parts Damaged . | . . . . Bothacking | -11 -10 -10 -10 ------------ Run | Yrd Mat Min Sub Used RIF Installer . | . . . . Robots Hacked . | . . . . Non-combat . | . . . . Combat . | . . . . Robot Hacks Applied . | . . . . Relay Couplers Released . | . . . . Fabnet Peak Effective % . | . . . . Robots Rewired . | . . . . Allies Hacked . | . . . . Hacks Repelled . | . . . . Allies | -11 -10 -10 -10 -------- Run | Yrd Mat Min Sub Total Allies 2 | . . 2 . Largest Group 2 | . . 2 2 Highest-Rated Group 44 | . . 44 44 Highest-Rated Ally 31 | . . 31 31 Total Orders . | . . . . Ally Attacks 23 | . . 14 9 Total Damage 384 | . . 236 148 Kills 6 | . . 4 2 Allies Corrupted . | . . . . Allies Melted . | . . . . Intel | -11 -10 -10 -10 ------- Run | Yrd Mat Min Sub Active Infowar (turns) . | . . . . Robot Analysis Total . | . . . . Derelict Logs Recovered 2 | . . 1 1 Drone Launches . | . . . . Drone Recoveries . | . . . . Exploration | -11 -10 -10 -10 ------------- Run | Yrd Mat Min Sub Turns Passed 1180 | 68 210 243 659 Spaces Moved 879 | 51 155 164 509 Core 6 | 6 . . . Treads . | . . . . Legs 345 | 45 155 145 . Wheels 528 | . . 19 509 Hover . | . . . . Flight . | . . . . Fastest Speed 50 | 50 120 90 90 Average Speed 113 | 111 120 116 110 Slowest Speed 120 | 120 120 120 120 Overloaded Moves . | . . . . Propulsion Burnouts . | . . . . Robots Hopped . | . . . . Potential Cave-ins . | . . . . Cave-ins Triggered . | . . . . Exploration Rate (%) 30 | 4 35 44 39 Regions Visited 3 Branch Regions 2 Pre-discovered Areas . | . . . . Known Exits Taken 1 | . . 1 . Unknown Exits Taken 2 | 1 1 . . Scrap Searched 1 | . . 1 . Spaces Dug . | . . . . Terrain Destroyed . | . . . . Melee . | . . . . Projectile . | . . . . AOE . | . . . . Terrain Rammed . | . . . . Walls Destroyed . | . . . . Machines Disabled . | . . . . Actions | -11 -10 -10 -10 --------- Run | Yrd Mat Min Sub Total 980 | 59 167 192 562 Wait 11 | . . 11 . Move 876 | 50 154 163 509 Hop . | . . . . Pick Up 22 | 3 3 2 14 Fast Attach 9 | 6 2 1 . Attach 5 | . . . 5 Detach 1 | . 1 . . Swap 7 | . . 3 4 Drop 8 | . 1 1 6 Fire 41 | . 6 11 24 Melee . | . . . . Ram . | . . . . Kick . | . . . . Crush . | . . . . Escape Stasis . | . . . . Rewire . | . . . . Trap . | . . . . Miscellaneous . | . . . . Route ------- -11/Scrapyard -10/Materials -10/Mines (discovered 2 exits: [*Mat] / *Sub) -10/Subcaves History --------- Turn | Location | Event 37 | -11/Scrapyard | Discovered new exit (range 15) 69 | -11/Scrapyard | Entered Materials 249 | -10/Materials | Discovered new exit (range 12) 279 | -10/Materials | Entered Mines 280 | -10/Mines | Met a Derelict bent on vengeance 315 | -10/Mines | Discovered new exit (range 14) 320 | -10/Mines | Build established: Mutant 393 | -10/Mines | Learned 4 Materials zone layouts 424 | -10/Mines | Found a hidden stash of uninstalled traps 507 | -10/Mines | Discovered new exit (range 6) 510 | -10/Mines | Identified exit to Subcaves 522 | -10/Mines | Entered Subcaves 522 | -10/Subcaves | Accompanied by 2 allies 523 | -10/Subcaves | Approached by a straggling Scientist 527 | -10/Subcaves | Led the pair of lost Derelicts to an unsafe place 623 | -10/Subcaves | Core integrity fell below 50% 692 | -10/Subcaves | Lost 3 parts (2n1w) 968 | -10/Subcaves | Shifting Twisted Machinery released Sub. Machine Gun 1077 | -10/Subcaves | Core integrity fell below 20% 1181 | -10/Subcaves | Destroyed by 55-THK(R) with Subdweller Machine Gun Last Messages --------------- Acquired Structural Scanner. Acquired 10 matter. 4U-ETI(z) destroyed. JS-26G(R) destroyed. KD-ZAL(c): "I think it's somewhere southwest of here" KD-ZAL(c) destroyed. D6-NLK(R) affixes Scrap Shield Fragment to Scrap Shield. D6-NLK(R) knocked back. D6-NLK(R) destroyed. Acquired 15 matter. Acquired 21 matter. Acquired Sub. Monowheel. Tech Extrapolator violently self-destructs. Acquired Wheel. Dropped Ion Engine. Acquired Sub. Power Source. Acquired derelict log, extracted data. Data stored: Mines entrances (x2). Map ----- +----------------------------------------------------+ | ?????????????????????????????????????????????????? | | ?????????????????????????????????????????????????? | | ?????????????????????????????????????????????????? | | ?????????????????????????????????????????????????? | | ?????????????????????????????????????????????????? | | ?????????????????????????????????????????????????? | | ?????????????????????????????????????????????????? | | ?????????????????????????????????????????????????? | | ?????????????????????????????????????????????????? | | ?????????????????????????????????????????????????? | | ?????????????????????????????????????????????????? | | ?????????????????????????????????????????????????? | | ?????????????????????????????????????????????????? | | ????????????????????##???????????????????????????? | | ???????????????????## ??????????#####???????????? | | ?????????????????### ?????????? ##??????????? | | ?????????????????# ??????????# ###????????# | | ?????????????????? ????????## ##??????## | | ??????????????????? ???????## #???#### | | ????????????????????# ?????### ##??# | | ????????????????????# RR#???## #?# #### | | ?????????????????????# ??## #?# ## | | ????????????????????## ### ### # | | ???????????????????## ### ##### | | ??????????? # ## ## ##?#! | | ??????????# @ %! #?## | | ?????????? % %! #?## | | ?????????????# # ## %!%& #?# | | ???????????????# ???# ### ! ! #### | | ???????????????#????# #?# *#### % ## | | ????????????????????# ##?# ## #??####%%! | | ????????????????????# ####??### #?????# | | ????????????????????# #???????## ##????# | | ????????????????????## ##????????# #????# | | ?????????????????????## ???######## #????# | | ??????????????????????####???# ##????# | | ?????????????????????????????# #????## | | ?????????????????????????????# ## #?????## | | ????????????????????????????## ## ##??????#### | | ????????????????????????????# ## #?????????# | | ????????????????????????????# # ##?????????# | | ????????????????????????????## # #?????????# | | ????????????????????????????## ## ####?????????# | | ????????????????????????????# ###?????????## | | ????????????????????????????# # ########### | | ????????????????????????????# # # # # ##%! | | ????????????????????????????## ## ## | | ????????????????????????????# #### # # # ### | | ????????????????????????????## ##??###########?### | | ????????????????????????????# #????????????????? | +----------------------------------------------------+ Best States ------------- Heat Dissipation 25 Energy Generation 10 Energy Capacity 125 Matter Stores 300 Matter Capacity 300 Sight Range 16 Terrain Scan Density 10 Evasion (%) 55 Item Schematics ----------------- None Robot Schematics ------------------ None Fabricated ------------ Nothing Repaired ---------- Nothing Studied --------- None Alien Tech Used ----------------- None Achievements -------------- None Challenges ------------ None Game ------ Seed NullGuidedTendrils Manual? 0 Play Time 00:08:40 Cumulative 110.0 hours Start 2026.04.05 @ 22:28:15 End 2026.04.05 @ 22:37:01 Sessions 1 Manual Loads 0 Difficulty Rogue Special Mode None Game No. 129 Rogue 129 Adventurer 0 Explorer 0 Win Type - Total 1 Types 1/0/0/0/0/0/0/0/0/0 Lore% 74 Gallery% 55 Achievement% 40 Wizard Run 0 Options --------- Layout 1 ASCII 0 Keyboard 0 Movement Mouse Keybinds 0 Fullscreen 2 Font 24/Smallcaps Map View 50x35 Zoom Use 0% Tactical HUD 0 Map Filters NONE Filters NONE Steam 1 RUN: ff3c771f-b2e3-4ae7-b94a-d9294073d521